bitfinex-derivatives/quotes_BTCF0:USTF0_20240902
["timestamp","ask_amount","ask_price","bid_price","bid_amount"]
[1725286329963,0.839562,58155.0,58154.0,0.00025785]
[1725286330569,0.753581,58155.0,58154.0,0.00025785]
[1725286330772,0.553581,58155.0,58154.0,0.00025785]
[1725286331270,0.553581,58155.0,58154.0,0.09455785]
[1725286331475,0.753581,58155.0,58154.0,0.09455785]
[1725286331677,0.753581,58155.0,58154.0,0.04935785]
[1725286331875,0.839562,58155.0,58154.0,0.00025785]
[1725286332076,0.753581,58155.0,58154.0,0.00025785]
[1725286332881,0.839562,58155.0,58154.0,0.00025785]
[1725286333382,0.753581,58155.0,58154.0,0.00025785]
[1725286334177,0.553581,58155.0,58154.0,0.00025785]
[1725286334478,0.753581,58155.0,58154.0,0.00025785]
[1725286335481,0.78679892,58155.0,58154.0,0.00025785]
[1725286335785,0.553581,58155.0,58154.0,0.00025785]
[1725286336288,0.6560541,58155.0,58154.0,0.00025785]
[1725286336678,0.753581,58155.0,58154.0,0.00025785]
[1725286338078,0.553581,58155.0,58154.0,0.08623985]
[1725286338271,0.553581,58155.0,58154.0,0.00025785]
[1725286341785,0.553581,58155.0,58154.0,0.08623985]
[1725286342085,0.553581,58155.0,58154.0,0.00025785]
[1725286342482,0.453581,58155.0,58154.0,0.00025785]
[1725286343689,0.653581,58155.0,58154.0,0.00025785]
[1725286343876,0.739562,58155.0,58154.0,0.00025785]
[1725286344591,0.74358752,58155.0,58154.0,0.00025785]
[1725286346391,0.82956852,58155.0,58154.0,0.00025785]
[1725286346689,0.87358752,58155.0,58154.0,0.00025785]
[1725286347489,0.97617559,58155.0,58154.0,0.00025785]
[1725286348988,0.87358752,58155.0,58154.0,0.00025785]
[1725286349193,0.91878752,58155.0,58154.0,0.00025785]
[1725286349389,1.01358258,58155.0,58154.0,0.00025785]
[1725286350991,1.64680217,58155.0,58154.0,0.00025785]
[1725286351292,2.16268217,58155.0,58154.0,8.5e-07]
[1725286351917,2.21148217,58155.0,58154.0,8.5e-07]
[1725286353597,0.90680711,58155.0,58154.0,8.5e-07]
[1725286354200,1.02602836,58155.0,58154.0,8.5e-07]
[1725286354497,1.02645884,58155.0,58154.0,8.5e-07]
[1725286355098,1.12091291,58155.0,58154.0,8.5e-07]
[1725286355588,1.03493191,58155.0,58154.0,8.5e-07]
[1725286355785,1.12091291,58155.0,58154.0,8.5e-07]
[1725286356405,1.00126119,58155.0,58154.0,8.5e-07]
[1725286356589,1.03493966,58155.0,58154.0,8.5e-07]
[1725286356897,1.12092066,58155.0,58154.0,8.5e-07]
[1725286358287,1.00126119,58155.0,58154.0,8.5e-07]
[1725286358492,1.12091588,58155.0,58154.0,8.5e-07]
[1725286358991,1.12091598,58155.0,58154.0,8.5e-07]
[1725286359394,1.04337562,58155.0,58154.0,8.5e-07]
[1725286360900,2.20925562,58155.0,58154.0,8.5e-07]
[1725286361207,1.60925562,58155.0,58154.0,8.5e-07]
[1725286361507,2.15925562,58155.0,58154.0,8.5e-07]
[1725286361709,2.20925562,58155.0,58154.0,8.5e-07]
[1725286362190,2.16714129,58155.0,58154.0,8.5e-07]
[1725286362495,1.56714129,58155.0,58154.0,8.5e-07]
[1725286362695,1.61714129,58155.0,58154.0,8.5e-07]
[1725286362897,2.21714129,58155.0,58154.0,8.5e-07]
[1725286363208,1.61714129,58155.0,58154.0,8.5e-07]
[1725286363398,1.5171425,58155.0,58154.0,8.5e-07]
[1725286363703,1.5771425,58155.0,58154.0,8.5e-07]
[1725286363903,1.55925791,58155.0,58154.0,8.5e-07]
[1725286364294,1.62925791,58155.0,58154.0,8.5e-07]
[1725286364496,2.30675473,58155.0,58154.0,8.5e-07]
[1725286364892,1.70675473,58155.0,58154.0,8.5e-07]
[1725286365294,2.30675473,58155.0,58154.0,8.5e-07]
[1725286365902,1.70675473,58155.0,58154.0,8.5e-07]
[1725286366105,1.5871425,58155.0,58154.0,8.5e-07]
[1725286366505,1.62925748,58155.0,58154.0,8.5e-07]
[1725286366809,2.22925748,58155.0,58154.0,8.5e-07]
[1725286367611,1.62925748,58155.0,58154.0,8.5e-07]
[1725286367902,2.59005748,58155.0,58154.0,8.5e-07]
[1725286368104,2.54794233,58155.0,58154.0,8.5e-07]
[1725286368306,1.94794233,58155.0,58154.0,8.5e-07]
[1725286368518,2.54794233,58155.0,58154.0,8.5e-07]
[1725286368698,2.66755351,58155.0,58154.0,8.5e-07]
[1725286369205,2.59005779,58155.0,58154.0,8.5e-07]
[1725286371708,2.59005918,58155.0,58154.0,8.5e-07]
[1725286372005,2.51005918,58155.0,58154.0,8.5e-07]
[1725286373600,2.56284888,58155.0,58154.0,8.5e-07]
[1725286373801,2.55684888,58155.0,58154.0,8.5e-07]
[1725286374002,2.51705918,58155.0,58154.0,0.00200085]
[1725286374200,2.56984865,58155.0,58154.0,0.00200085]
[1725286374413,2.51705918,58155.0,58154.0,8.5e-07]
[1725286374914,2.39705918,58155.0,58154.0,8.5e-07]
[1725286375722,2.39905918,58155.0,58154.0,8.5e-07]
[1725286376012,1.29317918,58155.0,58154.0,8.5e-07]
[1725286376215,1.21317918,58155.0,58154.0,8.5e-07]
[1725286376419,1.28317918,58155.0,58154.0,8.5e-07]
[1725286376606,1.21317918,58155.0,58154.0,8.5e-07]
[1725286376912,1.27317918,58155.0,58154.0,8.5e-07]
[1725286377112,1.17106306,58155.0,58154.0,8.5e-07]
[1725286377308,1.2907787,58155.0,58154.0,8.5e-07]
[1725286377509,1.34077809,58155.0,58154.0,8.5e-07]
[1725286377713,1.22106245,58155.0,58154.0,8.5e-07]
[1725286378210,1.38289372,58155.0,58154.0,8.5e-07]
[1725286378401,1.26317808,58155.0,58154.0,8.5e-07]
[1725286378804,1.39999596,58155.0,58154.0,8.5e-07]
[1725286379309,1.91587596,58155.0,58154.0,8.5e-07]
[1725286379911,1.77905808,58155.0,58154.0,8.5e-07]
[1725286380108,1.26317808,58155.0,58154.0,8.5e-07]
[1725286381314,1.3999918,58155.0,58154.0,8.5e-07]
[1725286381615,1.26317808,58155.0,58154.0,8.5e-07]
[1725286381818,1.39999084,58155.0,58154.0,8.5e-07]
[1725286382405,1.26317808,58155.0,58154.0,8.5e-07]
[1725286383514,1.30317808,58155.0,58154.0,8.5e-07]
[1725286383707,1.26106245,58155.0,58154.0,8.5e-07]
[1725286384211,1.21317896,58155.0,58154.0,8.5e-07]
[1725286385414,1.13784159,58155.0,58154.0,8.5e-07]
[1725286385724,1.21317967,58155.0,58154.0,8.5e-07]
[1725286386820,1.12719867,58155.0,58154.0,8.5e-07]
[1725286387007,1.07660921,58155.0,58154.0,8.5e-07]
[1725286387214,1.20503189,58155.0,58154.0,8.5e-07]
[1725286388122,1.12740637,58155.0,58154.0,8.5e-07]
[1725286388625,1.12740631,58155.0,58154.0,8.5e-07]
[1725286389919,1.11872399,58155.0,58154.0,8.5e-07]
[1725286390113,1.11872264,58155.0,58154.0,8.5e-07]
[1725286390521,1.12748846,58155.0,58154.0,8.5e-07]
[1725286391327,1.18027649,58155.0,58154.0,8.5e-07]
[1725286394222,1.12748846,58155.0,58154.0,8.5e-07]
[1725286394732,1.21346946,58155.0,58154.0,8.5e-07]
[1725286394938,1.12748991,58155.0,58154.0,8.5e-07]
[1725286395523,1.21347091,58155.0,58154.0,8.5e-07]
[1725286396024,1.12748991,58155.0,58154.0,8.5e-07]
[1725286396524,1.03274309,58155.0,58154.0,8.5e-07]
[1725286396721,1.16965279,58155.0,58154.0,8.5e-07]
[1725286396924,0.90274309,58155.0,58154.0,8.5e-07]
[1725286397334,0.81490644,58155.0,58154.0,8.5e-07]
[1725286397536,0.67804309,58155.0,58154.0,0.00080085]
[1725286397724,0.79804309,58155.0,58154.0,0.00080085]
[1725286398028,0.93490644,58155.0,58154.0,0.00080085]
[1725286398333,0.79804309,58155.0,58154.0,0.00080085]
[1725286398532,0.88402409,58155.0,58154.0,0.51668085]
[1725286398833,0.88402409,58155.0,58154.0,1.11668085]
[1725286399239,0.80868752,58155.0,58154.0,1.20266285]
[1725286399838,0.11759546,58155.0,58154.0,1.20266285]
[1725286400130,0.085975,58159.0,58158.0,0.085976]
[1725286400334,0.085975,58159.0,58154.0,1.11668085]
[1725286400335,0.085981,58155.0,58154.0,0.20866185]
[1725286400537,0.085981,58155.0,58154.0,0.60266185]
[1725286400734,0.085981,58155.0,58154.0,1.20266185]
[1725286401431,0.12,58157.0,58154.0,1.20266185]
[1725286401432,0.12,58157.0,58156.0,0.085979]
[1725286401940,0.085976,58159.0,58158.0,0.085976]
[1725286402230,0.197976,58159.0,58158.0,0.602816]
[1725286402433,0.112,58159.0,58158.0,1.202816]
[1725286402831,0.002,58159.0,58158.0,1.202816]
[1725286403039,0.08597,58163.0,58158.0,1.13084]
[1725286403239,0.08597,58163.0,58160.0,0.12]
[1725286403836,0.08597,58163.0,58162.0,0.085971]
[1725286404628,0.20597,58163.0,58162.0,0.085971]
[1725286404929,0.20597,58163.0,58162.0,0.086971]
[1725286406128,0.20797,58163.0,58162.0,0.086971]
[1725286406331,0.24118004,58163.0,58162.0,0.086971]
[1725286406641,0.28328168,58163.0,58162.0,0.086971]
[1725286406829,0.28728168,58163.0,58162.0,0.086971]
[1725286407342,0.28328168,58163.0,58162.0,0.085971]
[1725286407534,0.28328168,58163.0,58162.0,0.086971]
[1725286407535,0.28728168,58163.0,58162.0,0.086971]
[1725286407736,0.28728168,58163.0,58162.0,0.087971]
[1725286407937,0.28328168,58163.0,58162.0,0.086971]
[1725286408133,0.28728168,58163.0,58162.0,0.087971]
[1725286408531,0.28328351,58163.0,58162.0,0.086971]
[1725286408733,0.28728351,58163.0,58162.0,0.087971]
[1725286409032,0.28528351,58163.0,58162.0,0.087971]
[1725286409238,0.28728351,58163.0,58162.0,0.087971]
[1725286409828,0.28528351,58163.0,58162.0,0.001]
[1725286410029,0.33468351,58163.0,58162.0,0.001]
[1725286410233,0.42265351,58163.0,58162.0,0.002]
[1725286410433,0.54265351,58163.0,58162.0,0.002]
[1725286410631,0.54065351,58163.0,58162.0,0.001]
[1725286410831,0.67551686,58163.0,58162.0,0.001]
[1725286411027,0.67551686,58163.0,58162.0,0.002]
[1725286411028,0.68051686,58163.0,58162.0,0.002]
[1725286411228,0.54365351,58163.0,58162.0,0.002]
[1725286411436,0.53865351,58163.0,58162.0,0.001]
[1725286411637,0.54365351,58163.0,58162.0,0.002]
[1725286412131,0.59809764,58163.0,58162.0,0.002]
[1725286412340,0.41225668,58163.0,58162.0,0.002]
[1725286413035,0.54869764,58163.0,58162.0,0.002]
[1725286413446,0.41225668,58163.0,58162.0,0.002]
[1725286414344,0.33694317,58163.0,58162.0,0.002]
[1725286418545,0.38654317,58163.0,58162.0,0.002]
[1725286419748,0.47251317,58163.0,58162.0,0.002]
[1725286419936,0.52001317,58163.0,58162.0,0.002]
[1725286420137,0.55322809,58163.0,58162.0,0.002]
[1725286421349,0.5953371,58163.0,58162.0,0.002]
[1725286422642,0.59533812,58163.0,58162.0,0.002]
[1725286424251,0.73177252,58163.0,58162.0,0.002]
[1725286425043,0.73177212,58163.0,58162.0,0.002]
[1725286425251,0.59533772,58163.0,58162.0,0.002]
[1725286425953,0.46186772,58163.0,58162.0,0.002]
[1725286426150,0.59858718,58163.0,58162.0,0.002]
[1725286426848,0.46186772,58163.0,58162.0,0.002]
[1725286427239,0.41975889,58163.0,58162.0,0.002]
[1725286427451,0.46186218,58163.0,58162.0,0.002]
[1725286428050,0.59865718,58163.0,58162.0,0.002]
[1725286428258,0.46186218,58163.0,58162.0,0.002]
[1725286428449,0.41226218,58163.0,58162.0,0.002]
[1725286429359,0.33694317,58163.0,58162.0,0.002]
[1725286431448,0.33694317,58163.0,58162.0,0.087971]
[1725286431449,0.21694317,58163.0,58162.0,0.087971]
[1725286431653,0.21297,58163.0,58162.0,0.087971]
[1725286431953,0.33297,58163.0,58162.0,0.087971]
[1725286434757,0.69377,58163.0,58162.0,0.087971]
[1725286435345,0.69377,58163.0,58162.0,0.002]
[1725286435550,0.882388,58163.0,58162.0,0.002]
[1725286435762,0.77974,58163.0,58162.0,0.002]
[1725286436962,0.69377,58163.0,58162.0,0.002]
[1725286439760,0.693769,58163.0,58162.0,0.002]
[1725286440262,0.72698199,58163.0,58162.0,0.002]
[1725286441564,0.81295099,58163.0,58162.0,0.002]
[1725286444073,0.89891999,58163.0,58162.0,0.002]
[1725286444467,1.0778361,58163.0,58162.0,0.002]
[1725286444779,1.08283476,58163.0,58162.0,0.002]
[1725286444965,0.94602551,58163.0,58162.0,0.002]
[1725286445374,0.86005651,58163.0,58162.0,0.002]
[1725286446867,0.74005651,58163.0,58162.0,0.002]
[1725286447479,0.65408751,58163.0,58162.0,0.002]
[1725286447672,0.73165818,58163.0,58162.0,0.002]
[1725286448481,0.65408572,58163.0,58162.0,0.002]
[1725286449576,0.65408527,58163.0,58162.0,0.002]
[1725286450270,0.79089452,58163.0,58162.0,0.002]
[1725286451167,0.65408527,58163.0,58162.0,0.002]
[1725286451579,0.61198032,58163.0,58162.0,0.002]
[1725286455378,0.61198032,58163.0,58162.0,1.323771]
[1725286455379,0.127,58163.0,58162.0,1.323771]
[1725286455579,0.09252559,58163.0,58162.0,1.770542]
[1725286455785,0.007,58163.0,58162.0,1.73599508]
[1725286455983,0.09252559,58163.0,58162.0,1.684571]
[1725286456200,0.092969,58163.0,58162.0,0.45378187]
[1725286457582,0.092969,58163.0,58162.0,1.08958187]
[1725286457887,0.092969,58163.0,58162.0,1.68958187]
[1725286457888,0.007,58163.0,58162.0,1.68958187]
[1725286458581,0.0924717,58163.0,58162.0,1.68958187]
[1725286459483,0.007,58163.0,58162.0,1.68958187]
[1725286459690,0.007,58163.0,58162.0,1.77555287]
[1725286461881,0.007,58163.0,58162.0,1.41475287]
[1725286462483,0.10950003,58163.0,58162.0,1.41475287]
[1725286462882,0.007,58163.0,58162.0,1.41475287]
[1725286463083,0.10950073,58163.0,58162.0,1.41475287]
[1725286463482,0.007,58163.0,58162.0,1.41475287]
[1725286464598,0.10950073,58163.0,58162.0,0.72878187]
[1725286464782,0.19546973,58163.0,58162.0,0.09298187]
[1725286464983,0.092969,58163.0,58162.0,0.21298187]
[1725286465193,0.007,58163.0,58162.0,1.32878187]
[1725286465896,0.1094682,58163.0,58162.0,1.32878187]
[1725286466598,0.007,58163.0,58162.0,1.32878187]
[1725286469792,0.007,58163.0,58162.0,1.20878187]
[1725286469994,0.007,58163.0,58162.0,0.09298187]
[1725286470187,0.09238306,58163.0,58162.0,0.09298187]
[1725286471499,0.007,58163.0,58162.0,0.09298187]
[1725286472394,0.09238306,58163.0,58162.0,0.09298187]
[1725286472595,0.007,58163.0,58162.0,0.09298187]
[1725286473103,0.3678,58163.0,58162.0,0.09298187]
[1725286473796,0.453769,58163.0,58162.0,0.09298187]
[1725286476395,0.53915431,58163.0,58162.0,0.09298187]
[1725286476702,0.45318531,58163.0,58162.0,0.09298187]
[1725286477095,0.007,58163.0,58162.0,0.09298187]
[1725286478003,0.007,58163.0,58162.0,1.34617695]
[1725286478397,0.007,58163.0,58162.0,1.29475287]
[1725286478596,0.00025785,58165.0,58164.0,0.085968]
[1725286478901,0.44618531,58176.0,58175.0,0.085951]
[1725286479203,0.3608,58176.0,58175.0,0.205951]
[1725286479992,0.3658,58176.0,58175.0,0.206951]
[1725286480198,0.005,58176.0,58175.0,0.206951]
[1725286480398,0.005,58176.0,58175.0,1.769382]
[1725286481609,0.005,58176.0,58175.0,1.770382]
[1725286481908,0.00025785,58181.0,58175.0,1.683431]
[1725286482094,9.7e-07,58176.0,58175.0,1.736333]
[1725286482300,0.00025785,58181.0,58180.0,0.171888]
[1725286482498,0.00025785,58181.0,58180.0,0.533088]
[1725286482702,0.00025785,58181.0,58180.0,1.648728]
[1725286483098,0.00025785,58181.0,58180.0,1.768728]
[1725286484099,0.10245208,58192.0,58187.0,0.085932]
[1725286484296,0.10235327,58195.0,58194.0,0.085923]
[1725286484501,0.10235327,58199.0,58198.0,0.085917]
[1725286484705,0.15075327,58200.0,58198.0,0.1204]
[1725286484913,0.0484,58200.0,58199.0,0.0004]
[1725286485208,0.0484,58200.0,58198.0,0.12]
[1725286485412,0.0484,58200.0,58199.0,0.085916]
[1725286486713,0.0484,58200.0,58199.0,0.601396]
[1725286487017,0.0484,58200.0,58199.0,0.602396]
[1725286487311,0.04685785,58205.0,58204.0,0.085909]
[1725286487607,0.04685785,58205.0,58204.0,0.286309]
[1725286489209,0.04685785,58205.0,58204.0,0.288309]
[1725286490009,0.04685785,58205.0,58204.0,0.09343057]
[1725286490200,0.04685785,58205.0,58204.0,0.088309]
[1725286490804,0.13276485,58205.0,58204.0,0.0024]
[1725286491311,0.21867185,58205.0,58204.0,0.0024]
[1725286491503,0.22359624,58205.0,58204.0,0.0024]
[1725286492312,0.13768924,58205.0,58204.0,0.0024]
[1725286492511,0.23768924,58205.0,58204.0,0.0024]
[1725286492702,0.085922,58195.0,58191.0,0.0004]
[1725286492908,0.086322,58195.0,58191.0,0.0004]
[1725286493112,0.085926,58192.0,58191.0,0.0004]
[1725286493310,0.172252,58192.0,58191.0,0.0004]
[1725286493512,0.085937,58185.0,58184.0,0.3608]
[1725286493809,0.086337,58185.0,58184.0,0.3608]
[1725286494915,0.085337,58185.0,58184.0,0.5608]
[1725286495111,0.085939,58184.0,58179.0,0.00025785]
[1725286495311,0.3608,58188.0,58179.0,0.00025785]
[1725286495312,0.086344,58180.0,58179.0,0.00025785]
[1725286495506,0.0004,58180.0,58179.0,0.0911423]
[1725286495810,0.075342,58182.0,58179.0,0.0911423]
[1725286496208,0.063342,58182.0,58181.0,0.0004]
[1725286497907,0.063342,58182.0,58179.0,0.0061973]
[1725286497908,0.99544,58182.0,58179.0,0.00225785]
[1725286498101,0.085959,58170.0,58167.0,0.087563]
[1725286498310,0.0462,58169.0,58168.0,0.085962]
[1725286498602,0.13216,58169.0,58168.0,0.085962]
[1725286499607,0.13216,58169.0,58168.0,0.087962]
[1725286500308,0.0462,58169.0,58168.0,0.087962]
[1725286500510,0.36105785,58174.0,58173.0,0.085954]
[1725286502015,0.08596,58169.0,58168.0,0.002]
[1725286502213,0.08636,58169.0,58168.0,0.002]
[1725286502413,0.08636,58169.0,58168.0,0.086962]
[1725286503105,0.08636,58169.0,58168.0,0.085962]
[1725286503618,0.09336,58169.0,58168.0,0.085962]
[1725286503811,0.10736,58169.0,58168.0,0.086962]
[1725286504320,0.0214,58169.0,58168.0,0.086962]
[1725286505123,0.0284,58169.0,58168.0,0.603722]
[1725286505513,0.0284,58169.0,58168.0,0.087962]
[1725286508225,0.0284,58169.0,58168.0,0.173924]
[1725286510322,0.0284,58169.0,58168.0,0.087962]
[1725286512319,0.11436,58169.0,58168.0,0.087962]
[1725286513525,0.0284,58169.0,58168.0,0.087962]
[1725286515725,0.11436,58169.0,58168.0,0.087962]
[1725286520326,0.0284,58169.0,58168.0,0.087962]
[1725286524633,0.0284,58169.0,58168.0,0.13945255]
[1725286525046,0.0284,58169.0,58168.0,0.087962]
[1725286526530,0.0284,58169.0,58168.0,0.15661607]
[1725286527535,0.0284,58169.0,58168.0,0.087962]
[1725286528423,0.0284,58169.0,58168.0,0.173924]
[1725286528632,0.00025785,58174.0,58173.0,0.171908]
[1725286528829,0.08503428,58181.0,58173.0,1.3608]
[1725286529132,0.14895327,58186.0,58185.0,0.085937]
[1725286529133,0.08503428,58186.0,58185.0,0.085937]
[1725286529334,0.0465,58197.0,58185.0,0.71577113]
[1725286529335,0.048,58196.0,58185.0,0.71577113]
[1725286529629,0.048,58196.0,58195.0,0.0004]
[1725286529630,0.13392,58196.0,58195.0,0.0004]
[1725286529837,0.21895428,58196.0,58195.0,0.0004]
[1725286530230,0.13392,58196.0,58195.0,0.0004]
[1725286530430,0.21932047,58196.0,58195.0,0.0004]
[1725286530629,0.13792,58196.0,58195.0,0.0004]
[1725286532437,0.13792,58196.0,58195.0,0.0014]
[1725286532840,0.13492,58196.0,58195.0,0.0024]
[1725286533833,0.16811214,58196.0,58195.0,0.0024]
[1725286535442,0.16811214,58196.0,58195.0,0.0014]
[1725286535636,0.16811214,58196.0,58195.0,0.0024]
[1725286535844,0.16711214,58196.0,58195.0,0.0014]
[1725286536042,0.16711214,58196.0,58195.0,0.0024]
[1725286536239,0.68263214,58196.0,58195.0,0.0024]
[1725286536433,0.16711214,58196.0,58195.0,0.0024]
[1725286536634,0.16711516,58196.0,58195.0,0.0024]
[1725286538435,0.16711516,58196.0,58195.0,0.288322]
[1725286538436,0.048,58196.0,58195.0,0.288322]
[1725286538939,0.049,58196.0,58195.0,0.288322]
[1725286539137,0.049,58196.0,58195.0,0.287322]
[1725286539343,0.15123213,58196.0,58195.0,0.287322]
[1725286539642,0.049,58196.0,58195.0,0.288322]
[1725286540841,0.001,58196.0,58195.0,0.65423324]
[1725286541046,0.001,58196.0,58195.0,0.65323324]
[1725286541252,0.001,58196.0,58195.0,0.65423324]
[1725286542140,0.001,58196.0,58195.0,1.85567524]
[1725286542337,0.001,58196.0,58195.0,1.85467524]
[1725286542642,0.00025785,58201.0,58200.0,0.085914]
[1725286542841,0.00025785,58201.0,58200.0,0.286314]
[1725286544237,0.00125785,58201.0,58200.0,0.287314]
[1725286545439,0.00125785,58201.0,58200.0,0.288314]
[1725286546644,0.00025785,58201.0,58200.0,0.287314]
[1725286546950,0.00125785,58201.0,58200.0,0.802754]
[1725286547245,0.00125785,58201.0,58200.0,0.801754]
[1725286547641,0.00125785,58201.0,58200.0,0.887668]
[1725286547846,0.00125785,58201.0,58200.0,1.487668]
[1725286549842,0.00025785,58201.0,58200.0,1.487668]
[1725286550044,0.00125785,58201.0,58200.0,1.487668]
[1725286550551,0.00125785,58201.0,58200.0,0.887668]
[1725286551546,0.00125785,58201.0,58200.0,1.487668]
[1725286552753,0.00125785,58201.0,58200.0,1.532868]
[1725286552949,0.00125785,58201.0,58200.0,1.553568]
[1725286554362,0.00125785,58201.0,58200.0,1.639482]
[1725286555861,0.00025785,58201.0,58200.0,1.639482]
[1725286556556,0.00125785,58201.0,58200.0,1.639482]
[1725286556750,0.00125785,58201.0,58200.0,1.618782]
[1725286556956,0.00125785,58201.0,58200.0,1.620782]
[1725286557764,0.00125785,58201.0,58200.0,1.618782]
[1725286558462,0.00125785,58201.0,58200.0,1.018782]
[1725286560069,0.00025785,58201.0,58200.0,1.020782]
[1725286561064,0.00025785,58201.0,58200.0,1.620782]
[1725286561778,0.00025785,58201.0,58200.0,1.020782]
[1725286562270,0.00125785,58201.0,58200.0,1.018782]
[1725286562463,0.00125785,58201.0,58200.0,1.618782]
[1725286562665,0.00025785,58201.0,58200.0,1.618782]
[1725286562864,0.00125785,58201.0,58200.0,1.618782]
[1725286563663,0.00025785,58201.0,58200.0,1.68741613]
[1725286563870,0.00025785,58201.0,58200.0,1.69041613]
[1725286564166,0.00025785,58201.0,58200.0,1.625782]
[1725286564964,0.00025785,58201.0,58200.0,1.623782]
[1725286565668,0.00025785,58201.0,58200.0,1.620782]
[1725286568666,8.5e-07,58201.0,58200.0,1.706696]
[1725286568981,0.08516144,58208.0,58207.0,0.257712]
[1725286569177,0.08516144,58208.0,58207.0,0.458112]
[1725286569468,0.15173213,58212.0,58211.0,0.085898]
[1725286569674,0.15173213,58212.0,58211.0,0.286298]
[1725286569871,0.0495,58212.0,58211.0,0.286298]
[1725286570169,0.0495,58212.0,58211.0,0.372196]
[1725286570371,0.0495,58212.0,58211.0,0.286298]
[1725286570975,0.0495,58212.0,58211.0,0.29135875]
[1725286571168,0.23862913,58212.0,58211.0,0.00546075]
[1725286571366,0.136397,58212.0,58211.0,0.0004]
[1725286572471,0.136397,58212.0,58211.0,0.2004]
[1725286573972,0.136397,58212.0,58211.0,0.286298]
[1725286574866,0.136397,58212.0,58211.0,0.33767841]
[1725286577369,0.136397,58212.0,58211.0,0.05178041]
[1725286577569,0.085898,58211.0,58210.0,0.00500653]
[1725286577773,0.086298,58211.0,58209.0,0.0859]
[1725286577967,0.0004,58210.0,58209.0,0.0859]
[1725286578172,0.0859,58210.0,58209.0,0.0859]
[1725286578570,0.085901,58209.0,58208.0,0.00510683]
[1725286578780,0.085903,58208.0,58207.0,0.085904]
[1725286578975,0.135203,58208.0,58207.0,0.085904]
[1725286580079,0.136203,58208.0,58207.0,0.085904]
[1725286580275,0.136203,58208.0,58206.0,0.36604128]
[1725286580276,0.085904,58207.0,58206.0,0.00524128]
[1725286580478,0.11948769,58207.0,58206.0,0.00524128]
[1725286581770,0.11948769,58207.0,58206.0,0.09114728]
[1725286582275,0.11948769,58207.0,58206.0,0.00624128]
[1725286582471,0.12048769,58207.0,58206.0,0.00724128]
[1725286582874,0.12048769,58207.0,58206.0,0.09314728]
[1725286583071,0.087304,58207.0,58206.0,0.09314728]
[1725286583580,0.0014,58207.0,58206.0,0.09314728]
[1725286584783,0.0014,58207.0,58206.0,0.17905328]
[1725286585775,0.0014,58207.0,58206.0,0.09314728]
[1725286586183,0.08692805,58207.0,58206.0,0.09314728]
[1725286586479,0.0014,58207.0,58206.0,0.17905328]
[1725286586680,0.0004,58207.0,58206.0,0.3988639]
[1725286587186,0.0004,58207.0,58206.0,0.30894396]
[1725286587386,0.0004,58207.0,58206.0,0.39477228]
[1725286587681,0.0004,58207.0,58206.0,0.39877441]
[1725286587879,0.0004,58207.0,58206.0,0.39877484]
[1725286588077,0.0004,58207.0,58206.0,0.39877472]
[1725286588680,0.0004,58207.0,58206.0,0.31294396]
[1725286588876,0.0004,58207.0,58206.0,0.31286184]
[1725286589078,0.0004,58207.0,58206.0,0.26487716]
[1725286589278,0.0004,58207.0,58206.0,0.39576859]
[1725286589584,0.0004,58207.0,58206.0,0.39576803]
[1725286591088,0.0004,58207.0,58206.0,0.48167403]
[1725286591277,0.0004,58207.0,58206.0,0.39576803]
[1725286591473,0.0004,58207.0,58206.0,0.30994415]
[1725286591689,0.0004,58207.0,58206.0,0.39585015]
[1725286591990,0.0004,58207.0,58206.0,0.39575965]
[1725286592173,0.0004,58207.0,58206.0,0.39575323]
[1725286592380,0.0004,58207.0,58206.0,0.26486236]
[1725286592879,0.0004,58207.0,58206.0,0.39575342]
[1725286593079,0.0004,58207.0,58206.0,0.17905328]
[1725286593296,0.0004,58207.0,58206.0,0.17895636]
[1725286593497,0.0004,58207.0,58206.0,0.09314728]
[1725286595478,0.086304,58207.0,58206.0,0.00724128]
[1725286596892,0.086304,58207.0,58206.0,0.00624128]
[1725286597092,0.087304,58207.0,58206.0,0.00724128]
[1725286599289,0.30823605,58207.0,58206.0,0.00724128]
[1725286599495,0.222708,58207.0,58206.0,0.00225785]
[1725286599688,1.338108,58207.0,58206.0,0.00225785]
[1725286599996,1.458108,58207.0,58206.0,0.00225785]
[1725286600493,1.56073729,58207.0,58206.0,0.00225785]
[1725286600689,1.458108,58207.0,58206.0,0.00225785]
[1725286600989,1.544012,58207.0,58206.0,0.00225785]
[1725286601188,1.64655339,58207.0,58206.0,0.00225785]
[1725286601383,1.65153139,58207.0,58206.0,0.00225785]
[1725286601583,1.291278,58207.0,58191.0,0.3608]
[1725286601797,0.447126,58192.0,58187.0,0.2]
[1725286601993,0.447126,58192.0,58184.0,0.75594826]
[1725286601994,0.085937,58185.0,58184.0,0.002]
[1725286602195,0.085938,58184.0,58181.0,0.085942]
[1725286602402,0.0004,58182.0,58181.0,0.085942]
[1725286602696,0.085943,58181.0,58180.0,0.00508191]
[1725286602890,0.085946,58179.0,58176.0,0.2]
[1725286603086,0.086343,58181.0,58176.0,0.2]
[1725286603087,0.0004,58177.0,58176.0,0.00025785]
[1725286603288,0.085948,58177.0,58176.0,0.00025785]
[1725286603695,0.071948,58177.0,58176.0,0.00025785]
[1725286604796,0.071948,58177.0,58174.0,0.3608]
[1725286604797,0.76648,58177.0,58174.0,0.21225785]
[1725286604999,0.76648,58177.0,58159.0,0.06864826]
[1725286605000,0.085962,58168.0,58159.0,0.085974]
[1725286605192,0.447162,58168.0,58154.0,0.446782]
[1725286605393,0.447162,58168.0,58154.0,0.3608]
[1725286605394,1.562522,58168.0,58154.0,0.3608]
[1725286605892,0.085966,58166.0,58158.0,0.085976]
[1725286606093,0.085967,58165.0,58158.0,0.085976]
[1725286606289,0.085967,58165.0,58158.0,0.2]
[1725286607896,0.085967,58165.0,58162.0,0.085971]
[1725286608196,0.3608,58164.0,58162.0,0.085971]
[1725286608404,0.3608,58164.0,58158.0,0.285976]
[1725286609103,0.3608,58164.0,58158.0,0.2]
[1725286609403,0.0008,58159.0,58158.0,0.2]
[1725286609797,0.3658,58164.0,58158.0,0.2]
[1725286610103,0.3658,58164.0,58162.0,0.001]
[1725286610306,0.3738,58164.0,58162.0,0.001]
[1725286611004,0.3688,58164.0,58158.0,0.2008]
[1725286611206,0.3688,58164.0,58158.0,0.20945537]
[1725286611908,0.3808,58164.0,58162.0,0.001]